[Event "Panevezys ELITE Open 2021"]
[Site "Panevezys, Lithuania"]
[Date "2021.08.01"]
[Round "4.1"]
[White "Milovs, Daniels"]
[Black "Kazakouski, Valery"]
[Result "0-1"]
[WhiteElo "1743"]
[BlackElo "2499"]
[PlyCount "86"]
[EventDate "2021.??.??"]
[TimeControl "90/40+30:0"]
[WhiteClock "0:26:19"]
[BlackClock "0:03:19"]

1. e4 {[%emt 0:00:02]} e5 {[%emt 0:00:13]} 2. Nf3 {[%emt 0:00:00]} Nc6 {[%emt
0:00:17]} 3. Bc4 {[%emt 0:00:05]} Nf6 {[%emt 0:00:07]} 4. d3 {[%emt 0:00:03]}
Be7 {[%emt 0:00:08]} 5. c3 {[%emt 0:00:08]} O-O {[%emt 0:00:28]} 6. O-O {[%emt
0:00:19]} d6 {[%emt 0:00:38]} 7. h3 {[%emt 0:00:20]} Na5 {[%emt 0:00:46]} 8.
Bb5 {[%emt 0:00:03]} a6 {[%emt 0:01:15]} 9. Ba4 {[%emt 0:00:02]} b5 {[%emt 0:
00:09]} 10. Bc2 {[%emt 0:00:02]} c5 {[%emt 0:00:08]} 11. d4 {[%emt 0:02:24]}
Qc7 {[%emt 0:01:15]} 12. d5 {[%emt 0:01:17]} Bd7 {[%emt 0:05:13]} 13. Re1 {
[%emt 0:02:56]} c4 {[%emt 0:08:05]} 14. Nbd2 {[%emt 0:01:24]} Nb7 {[%emt 0:00:
09]} 15. Nf1 {[%emt 0:01:59]} Nc5 {[%emt 0:01:32]} 16. Ng3 {[%emt 0:00:21]}
Rfb8 {[%emt 0:03:22]} 17. Nh2 {[%emt 0:06:04]} b4 {[%emt 0:03:54]} 18. f4 {
[%emt 0:03:05]} a5 {[%emt 0:05:30]} 19. f5 {[%emt 0:04:15]} bxc3 {[%emt 0:06:
49]} 20. bxc3 {[%emt 0:00:14]} Nb3 {[%emt 0:01:22]} 21. axb3 {[%emt 0:01:42]}
cxb3 {[%emt 0:00:17]} 22. Bxb3 {[%emt 0:01:32]} Qb6+ {[%emt 0:03:25]} 23. Kh1 {
[%emt 0:01:21]} Qxb3 {[%emt 0:00:09]} 24. Qf3 {[%emt 0:00:39]} Rc8 {[%emt 0:04:
32]} 25. Ra3 {[%emt 0:00:43]} Qc2 {[%emt 0:02:27]} 26. Bg5 {[%emt 0:02:54]} h6
{[%emt 0:06:03]} 27. Bxf6 {[%emt 0:01:05]} Bxf6 {[%emt 0:01:07]} 28. Nh5 {
[%emt 0:04:58]} Kf8 {[%emt 0:12:48]} 29. Nxf6 {[%emt 0:04:55]} gxf6 {[%emt 0:
00:02]} 30. Qe3 {[%emt 0:08:16]} h5 {[%emt 0:04:57]} 31. Qh6+ {[%emt 0:03:56]}
Ke7 {[%emt 0:00:31]} 32. Qxh5 {[%emt 0:00:19]} Rxc3 {[%emt 0:01:25]} 33. Rxc3 {
[%emt 0:15:06]} Qxc3 {[%emt 0:00:26]} 34. Rg1 {[%emt 0:00:57]} Qe3 {[%emt 0:07:
17]} 35. Qh4 {[%emt 0:00:59]} Qg5 {[%emt 0:00:22]} 36. Qe1 {[%emt 0:02:09]} a4
{[%emt 0:03:19]} 37. Nf3 {[%emt 0:02:23]} Qf4 {[%emt 0:05:32]} 38. Qb4 {[%emt
0:01:19]} a3 {[%emt 0:01:39]} 39. Ra1 {[%emt 0:04:09]} Ra4 {[%emt 0:01:54]} 40.
Qb3 {[%emt 0:00:41]} Qxe4 {[%emt 0:02:10]} 41. Rxa3 {[%emt 0:00:21]} Rxa3 {
[%emt 0:04:17]} 42. Qxa3 {[%emt 0:00:02]} Qxd5 {[%emt 0:00:22]} 43. Qa7 {[%emt
0:01:18]} Qe4 {[%emt 0:01:10]} 0-1

[Event "Panevezys ELITE Open 2021"]
[Site "Panevezys, Lithuania"]
[Date "2021.08.01"]
[Round "4.2"]
[White "Sulskis, Sarunas"]
[Black "Sedykh, Stakhey"]
[Result "1/2-1/2"]
[WhiteElo "2523"]
[BlackElo "1418"]
[PlyCount "44"]
[EventDate "2021.??.??"]
[TimeControl "90/40+30:0"]
[WhiteClock "0:03:55"]
[BlackClock "0:31:49"]

1. e4 {[%emt 0:00:15]} e5 {[%emt 0:00:09]} 2. Nf3 {[%emt 0:00:21]} Nc6 {[%emt
0:00:09]} 3. Bc4 {[%emt 0:04:08]} Bc5 {[%emt 0:00:14]} 4. c3 {[%emt 0:06:34]}
Nf6 {[%emt 0:00:21]} 5. d4 {[%emt 0:07:06]} exd4 {[%emt 0:00:14]} 6. b4 {[%emt
0:00:10]} Bb6 {[%emt 0:06:30]} 7. O-O {[%emt 0:10:38]} d5 {[%emt 0:08:57]} 8.
exd5 {[%emt 0:02:39]} Nxd5 {[%emt 0:01:06]} 9. Ng5 {[%emt 0:08:14]} O-O {[%emt
0:06:02]} 10. Nxh7 {[%emt 0:03:53]} Kxh7 {[%emt 0:02:45]} 11. Qh5+ {[%emt 0:00:
43]} Kg8 {[%emt 0:00:05]} 12. Bxd5 {[%emt 0:00:27]} Qd6 {[%emt 0:14:51]} 13.
Be4 {[%emt 0:18:00]} f5 {[%emt 0:02:15]} 14. Bf4 {[%emt 0:05:14]} Qf6 {[%emt 0:
09:07]} 15. Bd5+ {[%emt 0:07:17]} Be6 {[%emt 0:00:17]} 16. Bxe6+ {[%emt 0:03:
16]} Qxe6 {[%emt 0:00:11]} 17. a4 {[%emt 0:00:37]} dxc3 {[%emt 0:05:21]} 18.
Nxc3 {[%emt 0:03:29]} Nxb4 {[%emt 0:02:27]} 19. Qf3 {[%emt 0:08:00]} Qc6 {
[%emt 0:03:45]} 20. Qxc6 {[%emt 0:03:57]} Nxc6 {[%emt 0:00:50]} 21. Nd5 {[%emt
0:01:06]} Rf7 {[%emt 0:00:35]} 22. Rfd1 {[%emt 0:01:30]} Rd8 {[%emt 0:03:27]}
1/2-1/2

[Event "Panevezys ELITE Open 2021"]
[Site "Panevezys, Lithuania"]
[Date "2021.08.01"]
[Round "4.3"]
[White "Butvilas, Aistis"]
[Black "Brazdzionis, Andrius"]
[Result "0-1"]
[WhiteElo "2088"]
[BlackElo "2321"]
[PlyCount "82"]
[EventDate "2021.??.??"]
[TimeControl "90/40+30:0"]
[WhiteClock "0:53:44"]
[BlackClock "0:47:33"]

1. d4 {[%emt 0:00:01]} Nf6 {[%emt 0:00:33]} 2. c4 {[%emt 0:00:05]} e6 {[%emt 0:
00:31]} 3. Nc3 {[%emt 0:00:05]} Bb4 {[%emt 0:00:24]} 4. e3 {[%emt 0:00:10]} O-O
{[%emt 0:00:37]} 5. Nge2 {[%emt 0:00:07]} c6 {[%emt 0:03:07]} 6. a3 {[%emt 0:
01:37]} Ba5 {[%emt 0:00:18]} 7. Ng3 {[%emt 0:01:02]} d5 {[%emt 0:00:38]} 8. Bd3
{[%emt 0:00:47]} dxc4 {[%emt 0:01:55]} 9. Bxc4 {[%emt 0:00:09]} Nbd7 {[%emt 0:
00:06]} 10. O-O {[%emt 0:01:34]} e5 {[%emt 0:00:34]} 11. Bb3 {[%emt 0:01:43]}
Bc7 {[%emt 0:02:12]} 12. Bc2 {[%emt 0:04:42]} Nb6 {[%emt 0:02:38]} 13. Qd3 {
[%emt 0:00:56]} Be6 {[%emt 0:02:55]} 14. Rd1 {[%emt 0:00:34]} g6 {[%emt 0:00:
47]} 15. dxe5 {[%emt 0:04:08]} Qxd3 {[%emt 0:00:19]} 16. Rxd3 {[%emt 0:00:22]}
Bxe5 {[%emt 0:00:12]} 17. f4 {[%emt 0:00:56]} Bc7 {[%emt 0:03:43]} 18. e4 {
[%emt 0:01:28]} Rfd8 {[%emt 0:03:58]} 19. Rxd8+ {[%emt 0:03:33]} Rxd8 {[%emt 0:
00:35]} 20. b3 {[%emt 0:00:48]} Nc8 {[%emt 0:05:54]} 21. h3 {[%emt 0:03:46]}
Bb6+ {[%emt 0:00:31]} 22. Kh2 {[%emt 0:01:23]} Ne7 {[%emt 0:01:29]} 23. f5 {
[%emt 0:01:07]} Bd4 {[%emt 0:08:39]} 24. fxe6 {[%emt 0:07:48]} Bxc3 {[%emt 0:
00:11]} 25. exf7+ {[%emt 0:00:03]} Kxf7 {[%emt 0:00:27]} 26. Rb1 {[%emt 0:00:
51]} Be5 {[%emt 0:00:09]} 27. Bb2 {[%emt 0:00:04]} Bxb2 {[%emt 0:00:12]} 28.
Rxb2 {[%emt 0:00:01]} Ke6 {[%emt 0:00:12]} 29. Ne2 {[%emt 0:06:41]} Rd2 {[%emt
0:03:32]} 30. Ng1 {[%emt 0:00:25]} Nxe4 {[%emt 0:03:02]} 31. Nf3 {[%emt 0:00:
17]} Rf2 {[%emt 0:00:04]} 32. Kg1 {[%emt 0:00:37]} Kf6 {[%emt 0:02:17]} 33. h4
{[%emt 0:03:54]} h6 {[%emt 0:00:28]} 34. Nh2 {[%emt 0:00:52]} h5 {[%emt 0:01:
47]} 35. Nf3 {[%emt 0:00:07]} Nd5 {[%emt 0:00:35]} 36. Ng5 {[%emt 0:00:59]}
Ndc3 {[%emt 0:00:06]} 37. b4 {[%emt 0:00:56]} b5 {[%emt 0:05:37]} 38. Nf3 {
[%emt 0:01:22]} Ne2+ {[%emt 0:01:22]} 39. Kh2 {[%emt 0:00:10]} Nf4 {[%emt 0:00:
19]} 40. Nd4 {[%emt 0:01:17]} Rxg2+ {[%emt 0:00:07]} 41. Kh1 {[%emt 0:00:03]}
Ng3# {[%emt 0:00:07]} 0-1

[Event "Panevezys ELITE Open 2021"]
[Site "Panevezys, Lithuania"]
[Date "2021.08.01"]
[Round "4.4"]
[White "Greicius, Pijus"]
[Black "Kalvaitis, Sigitas"]
[Result "1/2-1/2"]
[WhiteElo "1902"]
[BlackElo "2164"]
[PlyCount "34"]
[EventDate "2021.??.??"]
[TimeControl "90/40+30:0"]
[WhiteClock "1:02:39"]
[BlackClock "1:04:40"]

1. d4 {[%emt 0:00:02]} Nf6 {[%emt 0:00:06]} 2. c4 {[%emt 0:00:15]} e6 {[%emt 0:
00:04]} 3. Nc3 {[%emt 0:00:11]} Bb4 {[%emt 0:00:06]} 4. f3 {[%emt 0:00:40]} d5
{[%emt 0:01:47]} 5. a3 {[%emt 0:00:22]} Bxc3+ {[%emt 0:01:07]} 6. bxc3 {[%emt
0:00:08]} c5 {[%emt 0:00:12]} 7. cxd5 {[%emt 0:00:25]} Nxd5 {[%emt 0:00:31]} 8.
dxc5 {[%emt 0:00:31]} f5 {[%emt 0:01:05]} 9. Qc2 {[%emt 0:00:23]} Qa5 {[%emt 0:
03:47]} 10. e4 {[%emt 0:23:33]} fxe4 {[%emt 0:02:48]} 11. fxe4 {[%emt 0:01:41]}
Qxc3+ {[%emt 0:11:57]} 12. Qxc3 {[%emt 0:00:09]} Nxc3 {[%emt 0:00:03]} 13. Bb2
{[%emt 0:05:04]} Nxe4 {[%emt 0:02:09]} 14. Bxg7 {[%emt 0:00:13]} Rg8 {[%emt 0:
00:07]} 15. Bd4 {[%emt 0:00:38]} Nc6 {[%emt 0:00:23]} 16. Be3 {[%emt 0:00:47]}
Bd7 {[%emt 0:02:56]} 17. Nf3 {[%emt 0:01:16]} O-O-O {[%emt 0:05:13]} 1/2-1/2

[Event "Panevezys ELITE Open 2021"]
[Site "Panevezys, Lithuania"]
[Date "2021.08.01"]
[Round "4.6"]
[White "Juksta, Karolis"]
[Black "Bagvilas, Lukas"]
[Result "0-1"]
[WhiteElo "2438"]
[BlackElo "2000"]
[PlyCount "88"]
[EventDate "2021.??.??"]
[TimeControl "90/40+30:0"]
[WhiteClock "0:02:06"]
[BlackClock "0:22:26"]

1. d4 {[%emt 0:00:02]} d5 {[%emt 0:00:05]} 2. c4 {[%emt 0:00:07]} dxc4 {[%emt
0:00:05]} 3. e3 {[%emt 0:00:30]} Nf6 {[%emt 0:00:09]} 4. Bxc4 {[%emt 0:00:20]}
e6 {[%emt 0:00:08]} 5. Nf3 {[%emt 0:00:29]} a6 {[%emt 0:00:06]} 6. O-O {[%emt
0:00:19]} b5 {[%emt 0:00:07]} 7. Bd3 {[%emt 0:00:59]} Bb7 {[%emt 0:00:15]} 8.
a4 {[%emt 0:00:07]} b4 {[%emt 0:00:08]} 9. Nbd2 {[%emt 0:01:37]} Nbd7 {[%emt 0:
00:19]} 10. e4 {[%emt 0:24:31]} c5 {[%emt 0:02:34]} 11. e5 {[%emt 0:01:33]} Nd5
{[%emt 0:00:12]} 12. Ne4 {[%emt 0:05:55]} Qc7 {[%emt 0:08:02]} 13. dxc5 {[%emt
0:18:19]} Nxc5 {[%emt 0:00:22]} 14. Nxc5 {[%emt 0:00:22]} Bxc5 {[%emt 0:00:10]}
15. Bd2 {[%emt 0:02:35]} h6 {[%emt 0:00:33]} 16. Rc1 {[%emt 0:01:54]} Rc8 {
[%emt 0:05:22]} 17. Qe2 {[%emt 0:05:28]} Qa5 {[%emt 0:03:20]} 18. Rc4 {[%emt 0:
04:05]} Qb6 {[%emt 0:18:41]} 19. Rfc1 {[%emt 0:03:52]} Ke7 {[%emt 0:01:37]} 20.
h4 {[%emt 0:06:14]} Rhd8 {[%emt 0:03:45]} 21. h5 {[%emt 0:03:49]} a5 {[%emt 0:
05:47]} 22. Rg4 {[%emt 0:03:16]} Kf8 {[%emt 0:00:09]} 23. Bc4 {[%emt 0:10:30]}
Ne7 {[%emt 0:04:37]} 24. Be1 {[%emt 0:01:24]} Nf5 {[%emt 0:03:54]} 25. Kh2 {
[%emt 0:01:42]} Qc7 {[%emt 0:06:05]} 26. b3 {[%emt 0:02:24]} Bxf3 {[%emt 0:02:
42]} 27. Qxf3 {[%emt 0:00:06]} Qxe5+ {[%emt 0:00:12]} 28. Kg1 {[%emt 0:01:20]}
Nd4 {[%emt 0:01:32]} 29. Qg3 {[%emt 0:00:25]} Qxg3 {[%emt 0:01:46]} 30. Rxg3 {
[%emt 0:00:02]} Bd6 {[%emt 0:00:14]} 31. Rb1 {[%emt 0:01:15]} Bxg3 {[%emt 0:01:
20]} 32. fxg3 {[%emt 0:00:02]} e5 {[%emt 0:00:53]} 33. Bf2 {[%emt 0:00:18]} Rc6
{[%emt 0:02:31]} 34. Rf1 {[%emt 0:00:48]} f6 {[%emt 0:00:48]} 35. g4 {[%emt 0:
00:09]} Rdc8 {[%emt 0:00:53]} 36. Be3 {[%emt 0:00:51]} Rxc4 {[%emt 0:00:59]}
37. bxc4 {[%emt 0:00:02]} Rxc4 {[%emt 0:00:06]} 38. g5 {[%emt 0:00:31]} hxg5 {
[%emt 0:00:10]} 39. Bxg5 {[%emt 0:00:38]} Ke7 {[%emt 0:00:23]} 40. Be3 {[%emt
0:00:08]} b3 {[%emt 0:01:33]} 41. Rb1 {[%emt 0:00:13]} Rb4 {[%emt 0:04:47]} 42.
Kf2 {[%emt 0:00:28]} Ke6 {[%emt 0:00:15]} 43. g4 {[%emt 0:00:32]} Kd5 {[%emt 0:
01:52]} 44. g5 {[%emt 0:00:15]} fxg5 {[%emt 0:00:34]} 0-1

[Event "Panevezys ELITE Open 2021"]
[Site "Panevezys, Lithuania"]
[Date "2021.08.01"]
[Round "4.7"]
[White "Stremavicius, Pijus"]
[Black "Steponavicius, Stasys"]
[Result "0-1"]
[WhiteElo "2146"]
[BlackElo "2209"]
[PlyCount "92"]
[EventDate "2021.??.??"]
[TimeControl "90/40+30:0"]
[WhiteClock "1:12:38"]
[BlackClock "0:28:31"]

1. e4 {[%emt 0:00:04]} c5 {[%emt 0:00:24]} 2. Nf3 {[%emt 0:00:07]} Nc6 {[%emt
0:00:06]} 3. Bb5 {[%emt 0:00:16]} e6 {[%emt 0:00:10]} 4. O-O {[%emt 0:00:05]}
Nge7 {[%emt 0:00:05]} 5. d4 {[%emt 0:00:09]} cxd4 {[%emt 0:00:52]} 6. Nxd4 {
[%emt 0:00:06]} Qb6 {[%emt 0:04:18]} 7. Nxc6 {[%emt 0:00:11]} bxc6 {[%emt 0:03:
19]} 8. Bd3 {[%emt 0:00:17]} Ng6 {[%emt 0:00:25]} 9. c4 {[%emt 0:00:06]} e5 {
[%emt 0:02:39]} 10. Nc3 {[%emt 0:00:13]} d6 {[%emt 0:02:26]} 11. Rb1 {[%emt 0:
00:08]} Be7 {[%emt 0:00:11]} 12. Be3 {[%emt 0:00:05]} Qc7 {[%emt 0:00:13]} 13.
b4 {[%emt 0:00:06]} O-O {[%emt 0:02:42]} 14. b5 {[%emt 0:00:22]} Be6 {[%emt 0:
07:56]} 15. bxc6 {[%emt 0:00:35]} Qxc6 {[%emt 0:00:17]} 16. Nd5 {[%emt 0:00:04]
} f5 {[%emt 0:09:10]} 17. exf5 {[%emt 0:02:21]} Bxf5 {[%emt 0:00:20]} 18. Bxf5
{[%emt 0:00:06]} Rxf5 {[%emt 0:00:14]} 19. Qg4 {[%emt 0:06:45]} Rf7 {[%emt 0:
00:00]} 20. Qe6 {[%emt 0:09:10]} Bf8 {[%emt 0:03:29]} 21. g3 {[%emt 0:04:25]}
Re8 {[%emt 0:03:13]} 22. Qg4 {[%emt 0:00:09]} e4 {[%emt 0:03:44]} 23. Rfc1 {
[%emt 0:04:30]} Ne5 {[%emt 0:01:47]} 24. Qe2 {[%emt 0:00:15]} Qc8 {[%emt 0:05:
38]} 25. Kg2 {[%emt 0:03:13]} Qf5 {[%emt 0:05:34]} 26. h3 {[%emt 0:03:38]} Rc8
{[%emt 0:05:33]} 27. g4 {[%emt 0:11:43]} Qd7 {[%emt 0:23:07]} 28. Bf4 {[%emt 0:
03:25]} Nd3 {[%emt 0:04:12]} 29. Qxe4 {[%emt 0:00:17]} Nxc1 {[%emt 0:00:06]}
30. Rxc1 {[%emt 0:00:02]} Re8 {[%emt 0:00:59]} 31. Qd3 {[%emt 0:01:01]} Qe6 {
[%emt 0:01:39]} 32. Bg3 {[%emt 0:02:32]} Qe2 {[%emt 0:01:11]} 33. Qxe2 {[%emt
0:06:56]} Rxe2 {[%emt 0:00:07]} 34. a3 {[%emt 0:00:42]} Rb7 {[%emt 0:00:50]}
35. Rc3 {[%emt 0:04:12]} Reb2 {[%emt 0:01:18]} 36. Re3 {[%emt 0:00:46]} R2b3 {
[%emt 0:01:01]} 37. Re8 {[%emt 0:00:09]} Rb8 {[%emt 0:00:31]} 38. Re6 {[%emt 0:
04:47]} Kf7 {[%emt 0:01:13]} 39. Re4 {[%emt 0:01:09]} Rc8 {[%emt 0:01:57]} 40.
a4 {[%emt 0:00:40]} Ra3 {[%emt 0:00:18]} 41. Rf4+ {[%emt 0:00:10]} Kg8 {[%emt
0:02:29]} 42. c5 {[%emt 0:00:29]} dxc5 {[%emt 0:00:39]} 43. Rc4 {[%emt 0:00:13]
} Rd3 {[%emt 0:00:22]} 44. Ne3 {[%emt 0:00:16]} Rd4 {[%emt 0:00:28]} 45. Kf3 {
[%emt 0:00:04]} Re8 {[%emt 0:01:03]} 46. a5 {[%emt 0:00:19]} Rxe3+ {[%emt 0:00:
18]} 0-1

[Event "Panevezys ELITE Open 2021"]
[Site "Panevezys, Lithuania"]
[Date "2021.08.01"]
[Round "4.8"]
[White "Voroblievas, Arturas"]
[Black "Sedykh, Mikhail"]
[Result "0-1"]
[WhiteElo "1699"]
[BlackElo "2119"]
[PlyCount "169"]
[EventDate "2021.??.??"]
[TimeControl "90/40+30:0"]
[BlackClock "0:00:46"]

1. e4 {[%emt 0:00:02]} g6 {[%emt 0:00:08]} 2. d4 {[%emt 0:00:10]} Bg7 {[%emt 0:
00:05]} 3. Nc3 {[%emt 0:00:16]} c6 {[%emt 0:00:13]} 4. f4 {[%emt 0:00:50]} d5 {
[%emt 0:00:42]} 5. e5 {[%emt 0:01:03]} Nh6 {[%emt 0:00:57]} 6. Nf3 {[%emt 0:04:
44]} Bg4 {[%emt 0:01:04]} 7. Be2 {[%emt 0:01:47]} Nf5 {[%emt 0:02:54]} 8. Ng5 {
[%emt 0:04:12]} Bxe2 {[%emt 0:00:33]} 9. Nxe2 {[%emt 0:00:10]} h6 {[%emt 0:04:
54]} 10. Nf3 {[%emt 0:00:39]} e6 {[%emt 0:02:03]} 11. O-O {[%emt 0:03:01]} c5 {
[%emt 0:07:03]} 12. c3 {[%emt 0:03:03]} cxd4 {[%emt 0:17:08]} 13. cxd4 {[%emt
0:02:48]} Nc6 {[%emt 0:02:44]} 14. a3 {[%emt 0:02:41]} O-O {[%emt 0:03:01]} 15.
b4 {[%emt 0:05:48]} h5 {[%emt 0:10:04]} 16. Kh1 {[%emt 0:04:55]} Qb6 {[%emt 0:
02:22]} 17. Qd3 {[%emt 0:00:58]} Rfc8 {[%emt 0:03:52]} 18. Bb2 {[%emt 0:01:41]}
Bf8 {[%emt 0:04:12]} 19. Rac1 {[%emt 0:02:40]} Na5 {[%emt 0:11:51]} 20. Nd2 {
[%emt 0:09:29]} a6 {[%emt 0:01:37]} 21. Ba1 {[%emt 0:02:06]} Nc4 {[%emt 0:03:
54]} 22. Nxc4 {[%emt 0:07:04]} dxc4 {[%emt 0:00:19]} 23. Qe4 {[%emt 0:09:19]}
Rc6 {[%emt 0:08:36]} 24. Bc3 {[%emt 0:04:42]} Qb5 {[%emt 0:02:02]} 25. Be1 {
[%emt 0:05:10]} Qd5 {[%emt 0:01:25]} 26. Qb1 {[%emt 0:03:23]} b5 {[%emt 0:02:
04]} 27. Bf2 {[%emt 0:00:25]} Bh6 {[%emt 0:02:56]} 28. Nc3 {[%emt 0:01:36]} Qd8
{[%emt 0:00:06]} 29. Qe4 {[%emt 0:02:28]} Rcc8 {[%emt 0:02:23]} 30. Rfd1 {
[%emt 0:02:34]} Ne7 {[%emt 0:02:01]} 31. Bh4 {[%emt 0:00:42]} g5 {[%emt 0:01:
22]} 32. fxg5 {[%emt 0:01:13]} Nf5 {[%emt 0:00:13]} 33. d5 {[%emt 0:04:12]}
Nxh4 {[%emt 0:00:15]} 34. gxh6 {[%emt 0:02:15]} Qg5 {[%emt 0:00:12]} 35. h7+ {
[%emt 0:02:01]} Kg7 {[%emt 0:00:55]} 36. Rf1 {[%emt 0:01:13]} Ra7 {[%emt 0:00:
50]} 37. Rc2 {[%emt 0:00:28]} Ng6 {[%emt 0:00:43]} 38. Re2 {[%emt 0:00:49]}
exd5 {[%emt 0:01:06]} 39. Nxd5 {[%emt 0:01:26]} Kxh7 {[%emt 0:00:51]} 40. Nf6+
{[%emt 0:00:17]} Kg7 {[%emt 0:00:25]} 41. h4 {[%emt 0:01:32]} Qxh4+ {[%emt 0:
04:08]} 42. Qxh4 {[%emt 0:00:39]} Nxh4 {[%emt 0:00:01]} 43. Nxh5+ {[%emt 0:00:
11]} Kh6 {[%emt 0:02:32]} 44. Nf6 {[%emt 0:02:39]} c3 {[%emt 0:08:44]} 45. g3 {
[%emt 0:00:39]} c2 {[%emt 0:00:53]} 46. Rc1 {[%emt 0:19:08]} Nf5 {[%emt 0:00:
14]} 47. Rh2+ {[%emt 0:01:19]} Kg6 {[%emt 0:03:27]} 48. Rhxc2 {[%emt 0:05:26]}
Nxg3+ {[%emt 0:01:27]} 49. Kg2 {[%emt 0:01:46]} Rxc2+ {[%emt 0:00:27]} 50. Rxc2
{[%emt 0:00:09]} Nf5 {[%emt 0:00:15]} 51. Rc6 {[%emt 0:00:36]} Nd4 {[%emt 0:03:
06]} 52. Rc3 {[%emt 0:00:20]} Kf5 {[%emt 0:00:34]} 53. Re3 {[%emt 0:01:45]} Nc6
{[%emt 0:01:47]} 54. Ne8 {[%emt 0:02:10]} Nxe5 {[%emt 0:01:31]} 55. Nd6+ {
[%emt 0:00:43]} Ke6 {[%emt 0:00:24]} 56. Ne4 {[%emt 0:00:59]} f5 {[%emt 0:03:
31]} 57. Nc5+ {[%emt 0:00:08]} Kd5 {[%emt 0:00:08]} 58. Rh3 {[%emt 0:01:34]}
Nc4 {[%emt 0:02:21]} 59. Kf2 {[%emt 0:00:50]} a5 {[%emt 0:00:47]} 60. Rd3+ {
[%emt 0:00:36]} Kc6 {[%emt 0:01:49]} 61. Rf3 {[%emt 0:00:32]} axb4 {[%emt 0:00:
23]} 62. axb4 {[%emt 0:00:09]} Ra2+ {[%emt 0:00:15]} 63. Kg1 {[%emt 0:00:20]}
Nd6 {[%emt 0:00:23]} 64. Nd3 {[%emt 0:00:36]} Kd5 {[%emt 0:00:13]} 65. Nc5 {
[%emt 0:00:57]} Kc4 {[%emt 0:02:24]} 66. Rf4+ {[%emt 0:00:37]} Kc3 {[%emt 0:00:
15]} 67. Ne6 {[%emt 0:00:48]} Rb2 {[%emt 0:00:36]} 68. Ng7 {[%emt 0:00:28]}
Rxb4 {[%emt 0:00:30]} 69. Rf3+ {[%emt 0:00:15]} Kd2 {[%emt 0:01:11]} 70. Ne6 {
[%emt 0:00:29]} Rg4+ {[%emt 0:00:44]} 71. Kf1 {[%emt 0:00:23]} b4 {[%emt 0:00:
29]} 72. Nc5 {[%emt 0:00:12]} Kc2 {[%emt 0:00:45]} 73. Rf2+ {[%emt 0:00:57]}
Kc3 {[%emt 0:00:14]} 74. Rf3+ {[%emt 0:00:11]} Kc4 {[%emt 0:00:12]} 75. Nb3 {
[%emt 0:00:29]} Rg5 {[%emt 0:00:43]} 76. Nd2+ {[%emt 0:00:37]} Kb5 {[%emt 0:00:
23]} 77. Nb3 {[%emt 0:00:15]} Kc4 {[%emt 0:00:50]} 78. Nd2+ {[%emt 0:00:12]}
Kd5 {[%emt 0:00:09]} 79. Rb3 {[%emt 0:00:47]} Rg4 {[%emt 0:00:26]} 80. Rf3 {
[%emt 0:00:31]} Ne4 {[%emt 0:00:48]} 81. Nb3 {[%emt 0:01:51]} f4 {[%emt 0:00:
18]} 82. Ke2 {[%emt 0:00:51]} Rg2+ {[%emt 0:00:56]} 83. Kf1 {[%emt 0:00:05]}
Rg3 {[%emt 0:00:27]} 84. Ke2 {[%emt 0:00:30]} Ng5 {[%emt 0:00:39]} 85. Kf2 {
[%emt 0:01:50]} 0-1

[Event "Panevezys ELITE Open 2021"]
[Site "Panevezys, Lithuania"]
[Date "2021.08.01"]
[Round "4.9"]
[White "Salna, Aleksandras"]
[Black "Bazevicius, Albertas"]
[Result "1-0"]
[WhiteElo "2166"]
[BlackElo "1867"]
[PlyCount "131"]
[EventDate "2021.??.??"]
[TimeControl "90/40+30:0"]
[WhiteClock "1:33:55"]
[BlackClock "0:09:14"]

1. d4 {[%emt 0:00:01]} Nf6 {[%emt 0:00:07]} 2. Bf4 {[%emt 0:00:07]} d5 {[%emt
0:00:43]} 3. e3 {[%emt 0:00:07]} Bg4 {[%emt 0:02:30]} 4. f3 {[%emt 0:00:21]}
Bd7 {[%emt 0:01:49]} 5. c4 {[%emt 0:00:37]} c6 {[%emt 0:00:29]} 6. Nc3 {[%emt
0:00:16]} e6 {[%emt 0:00:43]} 7. e4 {[%emt 0:00:35]} Bb4 {[%emt 0:00:35]} 8. e5
{[%emt 0:00:32]} Ng8 {[%emt 0:00:38]} 9. Qb3 {[%emt 0:05:02]} Bxc3+ {[%emt 0:
02:24]} 10. bxc3 {[%emt 0:00:20]} Bc8 {[%emt 0:01:49]} 11. Bc1 {[%emt 0:02:03]}
Ne7 {[%emt 0:00:06]} 12. Ba3 {[%emt 0:01:01]} O-O {[%emt 0:01:31]} 13. Nh3 {
[%emt 0:00:46]} Re8 {[%emt 0:00:22]} 14. Bd3 {[%emt 0:01:40]} Ng6 {[%emt 0:01:
07]} 15. O-O {[%emt 0:00:23]} f5 {[%emt 0:01:25]} 16. Qc2 {[%emt 0:08:58]} Qh4
{[%emt 0:01:05]} 17. Nf2 {[%emt 0:02:44]} dxc4 {[%emt 0:12:22]} 18. Bxc4 {
[%emt 0:01:34]} Kh8 {[%emt 0:01:12]} 19. g3 {[%emt 0:02:11]} Qd8 {[%emt 0:01:
59]} 20. Bd3 {[%emt 0:01:46]} Na6 {[%emt 0:03:02]} 21. Bxa6 {[%emt 0:01:01]}
bxa6 {[%emt 0:00:08]} 22. Bc5 {[%emt 0:00:08]} Nf8 {[%emt 0:02:04]} 23. Bxf8 {
[%emt 0:00:45]} Rxf8 {[%emt 0:00:02]} 24. Nd3 {[%emt 0:00:08]} Rb8 {[%emt 0:02:
43]} 25. Nc5 {[%emt 0:00:18]} Rb6 {[%emt 0:04:57]} 26. Qd3 {[%emt 0:02:24]} Qe7
{[%emt 0:04:13]} 27. Rab1 {[%emt 0:00:57]} h5 {[%emt 0:00:57]} 28. Rb3 {[%emt
0:01:37]} Rd8 {[%emt 0:00:57]} 29. Qe2 {[%emt 0:01:08]} Rxb3 {[%emt 0:02:52]}
30. axb3 {[%emt 0:00:19]} Rg8 {[%emt 0:04:25]} 31. f4 {[%emt 0:00:28]} g6 {
[%emt 0:00:10]} 32. h4 {[%emt 0:00:06]} Qc7 {[%emt 0:00:58]} 33. Ra1 {[%emt 0:
00:26]} Qb6 {[%emt 0:00:16]} 34. Ra4 {[%emt 0:00:32]} Rg7 {[%emt 0:01:19]} 35.
Qa2 {[%emt 0:00:46]} Re7 {[%emt 0:00:53]} 36. Rb4 {[%emt 0:00:27]} Qc7 {[%emt
0:05:25]} 37. Kf2 {[%emt 0:00:38]} Kg7 {[%emt 0:00:18]} 38. Ke3 {[%emt 0:00:30]
} Qd8 {[%emt 0:01:11]} 39. c4 {[%emt 0:00:48]} Rc7 {[%emt 0:03:08]} 40. Kd3 {
[%emt 0:02:46]} Kf7 {[%emt 0:10:28]} 41. Kc3 {[%emt 0:00:34]} Qe7 {[%emt 0:03:
15]} 42. Qa5 {[%emt 0:02:29]} Kg7 {[%emt 0:08:00]} 43. Rb8 {[%emt 0:00:26]} Kh7
{[%emt 0:02:34]} 44. Nd3 {[%emt 0:01:15]} Kg7 {[%emt 0:01:17]} 45. Qb4 {[%emt
0:00:50]} Qd8 {[%emt 0:10:45]} 46. Qc5 {[%emt 0:00:54]} Rb7 {[%emt 0:10:54]}
47. Rxb7+ {[%emt 0:00:51]} Bxb7 {[%emt 0:00:09]} 48. Qd6 {[%emt 0:00:06]} Qa5+
{[%emt 0:04:00]} 49. Qb4 {[%emt 0:00:20]} Qxb4+ {[%emt 0:00:40]} 50. Kxb4 {
[%emt 0:00:10]} Kf7 {[%emt 0:00:34]} 51. Nc5 {[%emt 0:00:27]} Bc8 {[%emt 0:00:
14]} 52. Ka5 {[%emt 0:00:08]} Ke7 {[%emt 0:00:33]} 53. Nxa6 {[%emt 0:00:07]}
Kd7 {[%emt 0:00:24]} 54. Nc5+ {[%emt 0:00:10]} Kc7 {[%emt 0:00:05]} 55. Kb4 {
[%emt 0:00:11]} Kb6 {[%emt 0:01:11]} 56. Na4+ {[%emt 0:00:06]} Kc7 {[%emt 0:00:
32]} 57. Kc5 {[%emt 0:00:05]} Bb7 {[%emt 0:02:09]} 58. Nc3 {[%emt 0:00:16]} Kd7
{[%emt 0:03:59]} 59. b4 {[%emt 0:00:35]} Ke7 {[%emt 0:05:45]} 60. b5 {[%emt 0:
00:22]} Kd7 {[%emt 0:00:52]} 61. bxc6+ {[%emt 0:00:45]} Bxc6 {[%emt 0:00:04]}
62. d5 {[%emt 0:00:05]} Bb7 {[%emt 0:01:10]} 63. Nb5 {[%emt 0:00:08]} a5 {
[%emt 0:00:59]} 64. Kb6 {[%emt 0:00:36]} exd5 {[%emt 0:00:14]} 65. Kxb7 {[%emt
0:00:09]} dxc4 {[%emt 0:00:03]} 66. Nc3 {[%emt 0:00:16]} 1-0